bitfinex-derivatives/quotes_SOLF0:USTF0_20251216
["timestamp","ask_amount","ask_price","bid_price","bid_amount"]
[1765890003428,3.13967122,128.68,128.66,1.99116912]
[1765890003624,3.13967122,128.68,128.66,0.05286199]
[1765890004021,3.13967122,128.68,128.67,1.93783388]
[1765890004425,3.13967122,128.68,128.66,0.05286199]
[1765890005630,10.13547122,128.68,128.66,0.05286199]
[1765890005830,3.17,128.67,128.66,0.05286199]
[1765890006825,3.17,128.65,128.6,9.70038044]
[1765890007030,3.17,128.63,128.61,1.93745038]
[1765890007530,3.17,128.62,128.57,9.70038044]
[1765890007728,3.17,128.62,128.61,1.93746734]
[1765890009431,3.17,128.62,128.58,9.74071132]
[1765890009731,3.22723036,128.63,128.59,9.70038044]
[1765890010729,3.22723036,128.63,128.58,16.74151132]
[1765890013225,3.22723036,128.63,128.59,9.70038044]
[1765890014639,3.22723036,128.63,128.58,9.74071132]
[1765890015028,3.22723036,128.63,128.62,1.93712303]
[1765890015730,3.17,128.62,128.56,25.70038044]
[1765890015930,3.17,128.61,128.55,9.70038044]
[1765890016536,10.1695,128.61,128.55,9.70038044]
[1765890016737,0.05615772,128.59,128.55,9.70038044]
[1765890017040,3.22615772,128.59,128.55,9.70038044]
[1765890017838,3.22615772,128.59,128.53,21.57815009]
[1765890017839,68.74615772,128.59,128.58,1.93678377]
[1765890018047,3.17,128.58,128.57,1.93678377]
[1765890018340,65.57615772,128.59,128.54,9.70038044]
[1765890018538,3.17,128.56,128.54,9.70038044]
[1765890018838,3.17,128.56,128.45,109.0086]
[1765890018839,3.17,128.52,128.43,14.57465009]
[1765890019044,3.21956961,128.49,128.43,14.57465009]
[1765890019233,3.21956961,128.49,128.42,127.60393343]
[1765890019434,3.21956961,128.49,128.42,113.02928334]
[1765890020538,3.21956961,128.49,128.44,7.0085]
[1765890025744,3.17,128.46,128.39,109.0622]
[1765890025938,0.0506669,128.44,128.39,109.0622]
[1765890026641,0.0506669,128.44,128.4,7.0108]
[1765890028348,0.0506669,128.44,128.41,109.0474]
[1765890028548,0.0506669,128.44,128.4,109.0545]
[1765890029035,0.0506669,128.44,128.4,7.0106]
[1765890033753,3.2206669,128.44,128.4,7.0106]
[1765890034345,5.95103534,128.43,128.4,7.0106]
[1765890034555,5.95103534,128.42,128.37,109.0811]
[1765890034751,0.05251293,128.41,128.37,109.0811]
[1765890035658,0.05251293,128.41,128.38,7.0114]
[1765890036253,0.05251293,128.41,128.39,7.0111]
[1765890040350,3.44251293,128.41,128.39,7.0111]
[1765890040562,3.44251293,128.41,128.37,23.0123]
[1765890041457,0.05251293,128.41,128.39,2.56103534]
[1765890041764,3.39,128.46,128.4,2.56103534]
[1765890042066,3.39,128.46,128.44,1.90532589]
[1765890042562,3.44648376,128.46,128.44,1.95783882]
[1765890042764,3.44648376,128.46,128.45,1.90532589]
[1765890042965,3.44648376,128.46,128.44,0.05251293]
[1765890043157,3.39,128.45,128.44,0.05251293]
[1765890044761,3.39,128.44,128.39,16.0]
[1765890044962,3.39,128.44,128.35,65.64]
[1765890044963,3.39,128.41,128.35,16.0]
[1765890045154,3.39,128.41,128.34,18.56103534]
[1765890045567,5.95103534,128.4,128.34,18.56103534]
[1765890045965,3.44380823,128.38,128.34,16.0]
[1765890046166,3.44380823,128.38,128.31,78.0]
[1765890046367,6.00484357,128.38,128.31,78.0]
[1765890046667,3.39,128.37,128.31,18.56103534]
[1765890046966,0.05097104,128.35,128.31,18.56103534]
[1765890047670,3.44097104,128.35,128.31,18.56103534]
[1765890047869,3.44097104,128.35,128.31,16.0]
[1765890048665,0.05097104,128.35,128.31,18.56103534]
[1765890048868,0.05097104,128.35,128.33,2.56103534]
[1765890050566,0.05097104,128.35,128.31,18.56103534]
[1765890050959,3.44097104,128.35,128.31,16.0]
[1765890051167,3.44097104,128.35,128.29,2.56103534]
[1765890051366,0.05175833,128.33,128.29,2.56103534]
[1765890052067,0.05175833,128.33,128.31,2.56103534]
[1765890053465,0.05175833,128.33,128.31,2.5644318]
[1765890054667,0.05175833,128.33,128.31,4.1244318]
[1765890054860,0.05175833,128.33,128.31,2.5644318]
[1765890056177,3.39,128.38,128.31,18.5644318]
[1765890056378,3.39,128.38,128.34,2.5644318]
[1765890056563,5.9544318,128.4,128.34,2.5644318]
[1765890056876,3.39,128.39,128.38,1.91208324]
[1765890057573,3.39,128.39,128.32,2.5644318]
[1765890057780,3.39,128.37,128.32,2.5644318]
[1765890058379,3.39,128.37,128.36,1.91579479]
[1765890058681,5.9544318,128.37,128.36,1.91579479]
[1765890059082,3.39,128.37,128.36,1.91579479]
[1765890059382,5.9544318,128.37,128.36,1.91579479]
[1765890059879,3.39,128.36,128.35,1.91797166]
[1765890063378,9.10995847,128.36,128.35,1.91797166]
[1765890064084,3.39,128.36,128.35,1.91797166]
[1765890067272,0.05878743,128.37,128.36,0.63]
[1765890067478,0.05878743,128.37,128.36,3.1944318]
[1765890068388,11.42820306,128.44,128.37,0.63]
[1765890068686,3.09,128.43,128.42,1.92703701]
[1765890071490,3.09,128.43,128.42,4.49146881]
[1765890071876,3.09,128.43,128.42,2.5644318]
[1765890072087,3.09,128.43,128.41,0.0501153]
[1765890072282,3.09,128.43,128.42,1.92925029]
[1765890076693,3.14012366,128.44,128.42,2.55925029]
[1765890076880,3.14012366,128.44,128.43,1.93088888]
[1765890078092,0.05012366,128.44,128.43,4.49532068]
[1765890078287,0.05012366,128.44,128.43,2.5644318]
[1765890078690,0.05012366,128.44,128.43,3.1944318]
[1765890079089,3.09,128.48,128.44,0.63]
[1765890079293,3.09,128.48,128.46,1.93063111]
[1765890079494,3.09,128.48,128.47,1.93063111]
[1765890080194,3.14282695,128.49,128.47,5.12506291]
[1765890080401,3.14282695,128.49,128.48,1.93022394]
[1765890080699,3.14282695,128.49,128.47,2.5644318]
[1765890080997,3.14282695,128.49,128.46,0.0538305]
[1765890081189,3.14282695,128.49,128.47,1.93024608]
[1765890082394,3.09,128.48,128.47,1.93024608]
[1765890083496,3.09,128.48,128.47,0.00024608]
[1765890083700,3.09,128.48,128.46,0.0538305]
[1765890083997,5.6544318,128.47,128.46,0.0538305]
[1765890089293,2.5644318,128.47,128.46,0.0538305]
[1765890089796,5.6544318,128.47,128.46,0.0538305]
[1765890095404,3.09,128.47,128.46,0.0538305]
[1765890101803,3.43282695,128.49,128.46,2.6138305]
[1765890102006,3.43282695,128.49,128.48,1.92560817]
[1765890103703,0.05282695,128.49,128.48,2.56]
[1765890104402,65.64,128.52,128.48,2.56]
[1765890104999,65.64,128.52,128.49,2.56]
[1765890105597,65.69825208,128.52,128.49,2.61045813]
[1765890110402,69.07825208,128.52,128.49,2.61045813]
[1765890111404,3.38,128.51,128.49,2.61045813]
[1765890111597,3.38,128.51,128.49,0.05045813]
[1765890115710,3.38,128.51,128.49,9.61615813]
[1765890121420,69.07825208,128.52,128.5,2.56]
[1765890121620,69.07825208,128.52,128.49,7.05615813]
[1765890121916,65.69825208,128.52,128.5,9.565]
[1765890122122,0.05825208,128.52,128.51,2.56]
[1765890125627,0.05825208,128.52,128.5,7.005]
[1765890125628,3.39825208,128.52,128.5,7.005]
[1765890127627,3.39825208,128.52,128.49,16.05045813]
[1765890127628,3.39825208,128.52,128.49,0.05045813]
[1765890131222,0.05825208,128.52,128.49,18.61045813]
[1765890131430,0.05825208,128.52,128.5,2.56]
[1765890132626,0.05825208,128.52,128.5,9.5651]
[1765890132820,0.05825208,128.52,128.51,2.56]
[1765890133221,3.39825208,128.52,128.5,7.0051]
[1765890134325,3.39825208,128.52,128.49,2.61045813]
[1765890139425,3.39825208,128.52,128.49,0.05045813]
[1765890139619,3.39825208,128.52,128.51,1.9338901]
[1765890139818,3.39825208,128.52,128.49,0.05045813]
[1765890143438,3.39825208,128.52,128.49,2.61045813]
[1765890144338,3.39825208,128.52,128.49,9.61625813]
[1765890144521,3.39825208,128.52,128.5,2.56]
[1765890147539,3.39825208,128.52,128.49,9.61625813]
[1765890151445,3.39825208,128.52,128.5,2.56]
[1765890151633,3.39825208,128.52,128.49,9.61625813]
[1765890152639,3.39825208,128.52,128.49,0.05045813]
[1765890152946,3.39825208,128.52,128.51,1.94154269]
[1765890153244,9.21580384,128.52,128.51,1.94154269]
[1765890154130,3.39825208,128.52,128.51,1.94154269]
[1765890154328,9.21536553,128.52,128.51,1.94154269]
[1765890155444,11.77420688,128.52,128.51,1.94154269]
[1765890156136,11.77406349,128.52,128.51,1.94154269]
[1765890162857,3.27,128.5,128.49,0.05045813]
[1765890163062,71.50884135,128.5,128.49,0.05045813]
[1765890173063,68.95,128.5,128.49,0.05045813]
[1765890173864,68.95,128.51,128.49,3.35045813]
[1765890174065,68.95,128.51,128.5,5.23936317]
[1765890174368,68.95,128.51,128.5,3.3]
[1765890175470,68.95,128.51,128.49,0.05045813]
[1765890175665,68.95,128.51,128.49,3.35045813]
[1765890179671,3.27,128.5,128.49,3.35045813]
[1765890181061,65.68,128.51,128.5,3.3]
[1765890181468,68.95,128.51,128.49,10.35625813]
[1765890185875,3.24,128.5,128.49,7.05625813]
[1765890187667,3.24,128.5,128.49,10.14625813]
[1765890189560,3.24,128.5,128.49,7.05625813]
[1765890189761,3.24,128.5,128.49,0.05045813]
[1765890191374,0.05825208,128.52,128.49,3.14045813]
[1765890191576,3.29825208,128.52,128.5,5.64840337]
[1765890191773,3.29825208,128.52,128.5,10.0952]
[1765890191980,0.05825208,128.52,128.51,3.09]
[1765890195263,3.29825208,128.52,128.5,10.0952]
[1765890195467,0.05825208,128.52,128.5,10.0952]
[1765890196675,0.05825208,128.52,128.51,3.09]
[1765890198973,5.73434411,128.56,128.53,3.09]
[1765890198974,5.79840337,128.56,128.53,3.09]
[1765890199179,5.79840337,128.56,128.55,1.9373922]
[1765890200880,68.98925662,128.57,128.55,3.09]
[1765890201082,68.98925662,128.57,128.56,1.93589482]
[1765890201477,65.74925662,128.57,128.56,1.93589482]
[1765890201679,65.74925662,128.57,128.56,5.02589482]
[1765890201878,68.98925662,128.57,128.55,3.09]
[1765890202082,68.98925662,128.57,128.56,1.93521233]
[1765890202280,68.98925662,128.57,128.55,3.09]
[1765890203687,0.04925662,128.57,128.56,3.09]
[1765890204785,0.04925662,128.57,128.56,5.64840337]
[1765890207294,0.04925662,128.57,128.55,7.0024]
[1765890207295,3.28925662,128.57,128.55,7.0024]
[1765890207489,5.79840337,128.56,128.54,0.0546012]
[1765890207687,5.79840337,128.56,128.54,3.1446012]
[1765890210589,5.79840337,128.56,128.54,10.1476012]
[1765890211395,0.04925662,128.57,128.56,3.09]
[1765890212498,0.04925662,128.57,128.56,5.64840337]
[1765890217503,3.24,128.61,128.58,3.19]
[1765890218588,3.28933537,128.61,128.58,10.24862257]
[1765890219788,3.28933537,128.61,128.58,7.05862257]
[1765890219991,3.28933537,128.61,128.6,1.92046903]
[1765890223506,7.28052058,128.61,128.58,0.05802257]
[1765890223703,3.12,128.6,128.59,1.9211319]
[1765890223903,3.12,128.6,128.58,0.05802257]
[1765890230799,3.12,128.6,128.59,1.92423914]
[1765890232119,3.16933537,128.61,128.59,5.11423914]
[1765890232318,3.16933537,128.61,128.6,1.92423914]
[1765890232319,68.86933537,128.61,128.6,1.92423914]
[1765890233519,3.12,128.6,128.58,0.05802257]
[1765890233918,3.12,128.59,128.58,0.05802257]
[1765890242324,10.1203,128.6,128.58,0.05802257]
[1765890242631,3.12,128.58,128.54,3.19]
[1765890242833,3.12,128.58,128.57,1.93415422]
[1765890243131,68.82,128.58,128.57,1.93415422]
[1765890243727,3.28,128.57,128.56,0.05163381]
[1765890246430,68.98,128.58,128.56,3.42163381]
[1765890248133,3.28,128.58,128.56,3.42163381]
[1765890249529,3.28,128.58,128.57,1.93786966]
[1765890253738,3.28,128.58,128.51,124.9624]
[1765890253739,3.28,128.56,128.51,3.37]
[1765890253924,3.28,128.54,128.51,3.37]
[1765890254430,3.28,128.54,128.5,3.37]
[1765890254833,3.28,128.54,128.53,1.93866749]
[1765890255240,3.28,128.54,128.51,3.42598236]
[1765890255531,69.05468731,128.55,128.51,3.42598236]
[1765890255838,69.05468731,128.55,128.54,1.93771606]
[1765890260837,0.05468731,128.55,128.54,5.30771606]
[1765890261147,0.05468731,128.55,128.54,3.37]
[1765890263743,3.33468731,128.55,128.53,10.3734]
[1765890263951,0.05468731,128.55,128.54,3.37]
[1765890268236,3.33468731,128.55,128.53,10.3734]
[1765890268750,0.05468731,128.55,128.54,3.37]
[1765890273758,3.35468731,128.55,128.53,7.0034]
[1765890273961,3.35468731,128.55,128.53,10.3434]
[1765890274765,0.05468731,128.55,128.54,3.34]
[1765890275860,3.35468731,128.55,128.53,3.34]
[1765890276064,3.35468731,128.55,128.54,1.93770457]
[1765890276260,3.35468731,128.55,128.53,1.93770457]
[1765890279472,5.85794591,128.54,128.53,1.93770457]
[1765890281064,3.3,128.54,128.53,1.93770457]
[1765890281267,5.85794591,128.54,128.53,1.93770457]
[1765890283273,3.3,128.53,128.51,0.05598236]
[1765890283472,2.55794591,128.52,128.51,0.05598236]
[1765890284474,5.85794591,128.52,128.51,0.05598236]
[1765890286175,71.59794591,128.52,128.51,0.05598236]
[1765890287178,3.3,128.51,128.46,3.34]
[1765890287475,5.85794591,128.49,128.48,1.9371441]
[1765890288281,3.3,128.49,128.48,1.9371441]
[1765890289162,3.3,128.49,128.47,0.05950578]
[1765890289373,2.61384686,128.5,128.47,3.39950578]
[1765890289573,0.05590095,128.5,128.49,5.27430683]
[1765890289775,0.05590095,128.5,128.49,3.34]
[1765890290780,0.05590095,128.5,128.49,5.89794591]
[1765890290976,65.76,128.52,128.5,3.34]
[1765890291986,65.8146838,128.52,128.5,3.39883063]
[1765890292476,65.8146838,128.52,128.51,3.34]
[1765890292674,108.9085,128.58,128.52,3.34]
[1765890292675,7.0011,128.58,128.52,3.34]
[1765890292879,76.0811,128.58,128.56,1.93340297]
[1765890293574,76.13151195,128.58,128.56,1.9856639]
[1765890293880,3.32,128.57,128.56,0.05226093]
[1765890296185,65.81041195,128.58,128.56,0.05226093]
[1765890296373,65.81041195,128.58,128.57,1.93360813]
[1765890296578,65.81041195,128.58,128.57,5.27360813]
[1765890296781,65.81041195,128.58,128.56,3.39226093]
[1765890296983,65.81041195,128.58,128.57,1.93367081]
[1765890297777,65.81041195,128.58,128.57,2.55794591]
[1765890299581,65.81041195,128.58,128.57,5.89794591]
[1765890300185,0.05041195,128.58,128.57,5.89794591]
[1765890302186,9.55594591,128.64,128.59,3.34]
[1765890302187,3.32,128.64,128.59,3.34]
[1765890302490,69.08,128.64,128.61,5.27188846]
[1765890302685,69.08,128.64,128.62,1.93188846]
[1765890302987,65.76,128.64,128.63,5.27188846]
[1765890303185,65.76,128.64,128.63,3.34]
[1765890305784,68.93,128.64,128.62,3.36078951]
[1765890305982,3.17,128.63,128.62,0.05078951]
[1765890307288,65.76,128.64,128.62,3.37078951]
[1765890307289,3.34,128.64,128.62,3.37078951]
[1765890307474,3.39262287,128.65,128.62,3.37078951]
[1765890307676,0.05262287,128.65,128.64,5.24526146]
[1765890307883,0.05262287,128.65,128.64,3.32]
[1765890308293,0.05262287,128.65,128.63,10.3179]
[1765890308487,3.39262287,128.65,128.64,1.92422444]
[1765890310985,0.05262287,128.65,128.64,5.24422444]
[1765890311289,0.05262287,128.65,128.64,3.32]
[1765890311588,0.05262287,128.65,128.63,3.32]
[1765890311791,0.05262287,128.65,128.64,1.92184255]
[1765890312288,3.39262287,128.65,128.64,1.92184255]
[1765890312893,5.95056878,128.65,128.64,1.92184255]
[1765890313095,0.05262287,128.65,128.64,1.92184255]
[1765890313296,0.05262287,128.65,128.64,5.24184255]
[1765890313688,0.05262287,128.65,128.62,0.05078951]
[1765890313890,0.05262287,128.65,128.64,1.9205388]
[1765890314090,3.39262287,128.65,128.64,1.9205388]
[1765890316091,0.05262287,128.65,128.64,5.2405388]
[1765890316299,0.05262287,128.65,128.63,3.32]
[1765890316499,0.05262287,128.65,128.64,1.91892966]
[1765890319104,0.05262287,128.65,128.64,5.23892966]
[1765890319397,0.05262287,128.65,128.64,3.32]
[1765890319599,0.05262287,128.65,128.63,3.32]
[1765890319795,0.05262287,128.65,128.64,1.91774359]
[1765890320901,3.34,128.7,128.65,3.32]
[1765890321106,69.06,128.7,128.67,5.23677657]
[1765890321302,69.06,128.7,128.68,1.91677657]
[1765890321803,69.11351063,128.7,128.68,1.97001942]
[1765890322199,69.11351063,128.7,128.68,0.05324285]
[1765890322407,69.11351063,128.7,128.68,1.96931674]
[1765890322708,69.11351063,128.7,128.68,0.05324285]
[1765890322900,5.89794591,128.69,128.68,0.05324285]
[1765890323206,3.34,128.68,128.62,3.32]
[1765890323392,3.34,128.68,128.66,1.91612658]
[1765890323595,3.34,128.67,128.62,3.32]
[1765890323792,3.34,128.67,128.64,1.91631877]
[1765890323993,3.34,128.64,128.62,1.91646168]
[1765890324196,3.34,128.64,128.55,3.32]
[1765890324197,3.34,128.62,128.55,3.32]
[1765890324507,2.55310855,128.59,128.57,3.3701329]
[1765890324805,0.05379685,128.6,128.57,3.3701329]
[1765890327808,0.00379685,128.6,128.58,3.32]
[1765890328510,0.00379685,128.6,128.59,3.32]
[1765890339105,3.12379685,128.6,128.57,0.0501329]
[1765890339307,5.67310855,128.59,128.57,0.0501329]
[1765890339507,3.12,128.58,128.57,0.0501329]
[1765890339710,3.12,128.58,128.52,7.004]
[1765890339711,3.12,128.57,128.52,7.004]
[1765890339906,3.12,128.57,128.56,1.93225758]
[1765890340504,3.12,128.57,128.55,1.93225758]
[1765890340710,7.11359811,128.56,128.55,1.98204476]
[1765890340911,7.11359811,128.56,128.55,0.04978718]
[1765890341115,7.11359811,128.56,128.55,1.98212714]
[1765890341315,7.11359811,128.56,128.55,0.04978718]
[1765890341615,7.11359811,128.56,128.55,1.98170389]
[1765890341817,7.11359811,128.56,128.55,0.04978718]
[1765890342014,7.11359811,128.56,128.55,1.98175153]
[1765890342220,7.11359811,128.56,128.55,0.04978718]
[1765890342917,3.12,128.55,128.49,3.37]
[1765890343123,3.12,128.55,128.46,109.0025]
[1765890343124,3.12,128.54,128.53,0.00168306]
[1765890343307,1.52,128.5,128.46,3.37]
[1765890343813,0.05188959,128.49,128.47,3.42249347]
[1765890344905,1.57188959,128.49,128.47,0.05249347]
[1765890345612,1.57188959,128.49,128.48,1.92602104]
[1765890345915,1.57188959,128.49,128.47,0.05249347]
[1765890347821,65.78,128.48,128.47,0.05249347]
[1765890357216,0.05188959,128.49,128.47,3.42249347]
[1765890357423,0.05188959,128.49,128.48,1.91132737]
[1765890357615,0.05188959,128.49,128.47,3.42249347]
[1765890357812,0.05188959,128.49,128.48,1.91094589]
[1765890358123,0.05188959,128.49,128.47,0.05249347]
[1765890359826,0.05188959,128.49,128.41,109.0466]
[1765890359827,0.05188959,128.49,128.42,3.37]
[1765890360024,108.9767,128.5,128.45,1.91059681]
[1765890360326,108.9767,128.5,128.46,1.91059681]
[1765890360525,109.0119,128.46,128.4,3.37]
[1765890360714,65.82,128.45,128.38,3.37]
[1765890361028,0.05278939,128.43,128.4,0.05769633]
[1765890364026,0.05278939,128.43,128.4,3.40769633]
[1765890364229,65.82,128.42,128.4,3.40769633]
[1765890365921,65.82,128.42,128.4,0.05769633]
[1765890366123,76.83380632,128.42,128.4,0.05769633]
[1765890368230,4.00370632,128.42,128.4,0.05769633]
[1765890368431,65.84,128.41,128.4,0.05769633]
[1765890369426,0.05278939,128.43,128.4,0.05769633]
[1765890369734,65.84,128.42,128.4,3.40769633]
[1765890369932,65.84,128.42,128.41,1.90727647]
[1765890373725,65.84,128.42,128.4,0.05769633]
[1765890374226,72.85,128.42,128.4,0.05769633]
[1765890378730,72.85,128.42,128.36,3.35]
[1765890378731,7.011,128.4,128.36,3.35]
[1765890378932,65.86,128.39,128.38,1.91226485]
[1765890380528,65.86,128.39,128.37,3.40893031]
[1765890381034,65.86,128.39,128.38,5.26535791]
[1765890381235,65.86,128.39,128.38,3.35]
[1765890381828,65.86,128.39,128.37,0.05893031]
[1765890382028,65.86,128.39,128.38,1.9175248]
[1765890382432,0.05182088,128.4,128.38,1.9175248]
[1765890382736,65.88,128.39,128.38,1.9175248]
[1765890382939,65.93182088,128.4,128.38,3.35]
[1765890383143,65.93182088,128.4,128.39,1.91986906]
[1765890387542,71.69046048,128.4,128.39,1.91986906]
[1765890387737,78.70156048,128.4,128.38,1.91986906]
[1765890387941,5.7586396,128.39,128.37,0.05893031]
[1765890388238,5.75759506,128.38,128.37,0.05893031]
[1765890392148,0.05182088,128.4,128.37,3.40893031]
[1765890392447,0.05182088,128.4,128.38,5.27984422]
[1765890392646,65.88,128.39,128.38,5.27984422]
[1765890392846,65.88,128.39,128.38,3.35]
[1765890395437,0.05182088,128.4,128.38,3.35]
[1765890395636,65.88,128.42,128.38,3.35]
[1765890396446,65.88,128.42,128.4,3.15]
[1765890396644,65.93488787,128.42,128.4,3.20726498]
[1765890397550,65.93488787,128.42,128.41,3.15]
[1765890400856,65.93488787,128.42,128.4,0.05726498]
[1765890401057,69.93919653,128.42,128.41,1.93348899]
[1765890401458,75.50845073,128.42,128.4,0.05726498]
[1765890402555,68.49835073,128.42,128.4,0.05726498]
[1765890405558,74.26099528,128.42,128.4,0.05726498]
[1765890405759,68.49835073,128.42,128.4,0.05726498]
[1765890405956,74.26099528,128.42,128.4,0.05726498]
[1765890406156,68.49835073,128.42,128.4,0.05726498]
[1765890406356,74.26099528,128.42,128.4,0.05726498]
[1765890409063,71.69753242,128.42,128.4,0.05726498]
[1765890409363,2.56346286,128.41,128.4,0.05726498]
[1765890409562,117.37870741,128.41,128.33,3.15]
[1765890409863,2.56346286,128.37,128.36,1.93943417]
[1765890410066,65.88,128.37,128.36,1.93943417]
[1765890410257,68.44346286,128.37,128.36,1.93943417]
[1765890412355,0.0508768,128.38,128.36,3.15]
[1765890412356,2.61433966,128.38,128.36,3.15]
[1765890412560,65.9,128.37,128.36,3.15]
[1765890414369,65.9,128.37,128.35,0.0534313]
[1765890414571,68.46346286,128.37,128.35,3.2034313]
[1765890415372,65.9,128.37,128.35,3.2034313]
[1765890415572,68.46346286,128.37,128.35,3.2034313]
[1765890417469,65.9,128.37,128.35,3.2034313]
[1765890418668,2.61433966,128.38,128.35,3.2034313]
[1765890420473,0.0508768,128.38,128.35,3.2034313]
[1765890421677,0.0508768,128.38,128.37,3.15]
[1765890424876,0.0508768,128.38,128.36,10.1728]
[1765890425076,0.0508768,128.38,128.37,3.16]
[1765890425679,0.0508768,128.38,128.36,10.1728]
[1765890425874,2.56346286,128.37,128.35,0.0534313]
[1765890427385,2.56346286,128.36,128.35,0.0534313]
[1765890428282,0.0508768,128.38,128.35,0.0534313]
[1765890428476,0.0508768,128.38,128.35,3.2134313]
[1765890429687,0.0508768,128.38,128.35,10.2267313]
[1765890429886,0.0508768,128.38,128.36,3.16]
[1765890431486,0.0508768,128.38,128.35,0.0534313]
[1765890431687,2.56346286,128.37,128.35,0.0534313]
[1765890431895,0.0508768,128.38,128.35,3.2134313]
[1765890432191,2.56346286,128.37,128.36,1.93841867]
[1765890433184,2.56346286,128.37,128.35,0.0534313]
[1765890434589,8.36291236,128.37,128.31,3.16]
[1765890434797,8.36291236,128.37,128.34,1.93853292]
[1765890435480,5.7994495,128.37,128.34,1.98353236]
[1765890435680,0.05054958,128.37,128.34,0.04499944]
[1765890435885,2.56346286,128.35,128.34,1.98302562]
[1765890436091,2.56346286,128.35,128.34,0.04499944]
[1765890436292,2.56346286,128.35,128.34,1.98274838]
[1765890436492,2.56346286,128.35,128.34,0.04499944]
[1765890436696,2.56346286,128.35,128.34,1.98277066]
[1765890436879,2.56346286,128.35,128.34,0.04499944]
[1765890437087,68.48346286,128.35,128.34,1.98277066]
[1765890437288,68.48346286,128.35,128.34,0.04499944]
[1765890437490,68.48346286,128.35,128.34,1.9823362]
[1765890437700,68.48346286,128.35,128.34,0.04499944]
[1765890438008,68.48346286,128.35,128.34,5.1423362]
[1765890438202,0.05054958,128.37,128.35,3.16]
[1765890438496,0.05054958,128.37,128.34,0.04499944]
[1765890438696,2.56346286,128.35,128.31,3.16]
[1765890438900,109.13564958,128.37,128.29,3.16]
[1765890438901,2.56346286,128.33,128.29,3.16]
[1765890439094,5.7994495,128.37,128.29,10.1763]
[1765890439292,2.56346286,128.34,128.3,3.16]
[1765890439703,0.05439826,128.33,128.3,3.16]
[1765890440395,0.05439826,128.33,128.31,3.16]
[1765890441905,0.05439826,128.33,128.32,3.16]
[1765890444006,2.56346286,128.39,128.33,3.16]
[1765890444189,65.92,128.4,128.37,3.16]
[1765890444396,65.92,128.4,128.39,3.16]
[1765890446094,65.92,128.4,128.38,3.21216475]
[1765890446298,65.92,128.4,128.38,0.05216475]
[1765890446502,65.92,128.4,128.38,3.21216475]
[1765890450702,0.05181799,128.41,128.38,3.21216475]
[1765890451502,65.92,128.45,128.4,3.16]
[1765890451704,65.92,128.45,128.44,5.09610952]
[1765890451906,65.92,128.45,128.44,3.16]
[1765890452310,68.48346286,128.45,128.41,3.16]
[1765890452495,68.48346286,128.45,128.44,1.93444042]
[1765890452695,65.92,128.45,128.44,1.93444042]
[1765890452906,65.92,128.45,128.43,3.16]
[1765890453311,68.48346286,128.45,128.44,1.93353436]
[1765890454011,65.92,128.45,128.44,1.93353436]
[1765890454413,65.92,128.45,128.42,3.37917028]
[1765890455915,116.19299406,128.54,128.45,3.32]
[1765890456118,2.56346286,128.49,128.47,1.93179312]
[1765890456413,2.56346286,128.49,128.46,1.93179312]
[1765890456616,2.56346286,128.49,128.43,10.3289]
[1765890456811,132.85345742,128.52,128.46,1.93032237]
[1765890457013,2.56346286,128.49,128.48,0.05577939]
[1765890457514,4.12346286,128.49,128.48,0.05577939]
[1765890457817,2.56346286,128.49,128.48,0.05577939]
[1765890458014,4.12346286,128.49,128.48,0.05577939]
[1765890458213,2.56346286,128.49,128.48,0.05577939]
[1765890458410,4.12346286,128.49,128.48,0.05577939]
[1765890459513,4.12081824,128.49,128.43,10.3289]
[1765890459712,2.56081824,128.47,128.46,1.9278141]
[1765890460817,2.56081824,128.47,128.45,0.05182409]
[1765890462610,2.56081824,128.47,128.46,1.92647717]
[1765890463421,69.95410648,128.48,128.46,1.92647717]
[1765890464123,69.95410648,128.48,128.4,10.3804]
[1765890464419,4.00116854,128.45,128.41,3.37]
[1765890465119,4.00116854,128.45,128.44,1.92613739]
[1765890465722,4.00116854,128.45,128.43,1.92613739]
[1765890465926,113.01716854,128.45,128.38,16.0]
[1765890466122,4.00116854,128.42,128.37,3.37]
[1765890466323,69.90116854,128.42,128.37,3.37]
[1765890466523,4.00116854,128.4,128.35,3.37]
[1765890467123,0.05098658,128.39,128.37,1.92713356]